[Event "*** Titled Tuesday Blitz"]
[Site "Chess.com"]
[Date "2018.12.04"]
[Round "4"]
[White "Chessmatus"]
[Black "hypert"]
[Result "0-1"]
[WhiteElo "2172"]
[BlackElo "2381"]
[TimeControl "180+2"]
[EndTime "13:51:49 PST"]
[Termination "hypert won by resignation"]

1. d4 {[%clk 0:03:01.9]} 1... Nf6 {[%clk 0:03:00.5]} 2. c4 {[%clk 0:03:03.1]}
2... d6 {[%clk 0:03:02.4]} 3. Nc3 {[%clk 0:03:03.3]} 3... Nbd7 {[%clk
0:03:04.1]} 4. e4 {[%clk 0:03:03.5]} 4... e5 {[%clk 0:03:05.8]} 5. Nf3 {[%clk
0:03:04.5]} 5... Be7 {[%clk 0:03:03.3]} 6. Be2 {[%clk 0:03:04.4]} 6... O-O
{[%clk 0:03:04.9]} 7. O-O {[%clk 0:03:05.5]} 7... c6 {[%clk 0:03:06]} 8. Qc2
{[%clk 0:03:04.1]} 8... Qe8 {[%clk 0:03:06.3]} 9. Be3 {[%clk 0:03:04]} 9... Bd8
{[%clk 0:03:07.6]} 10. Rad1 {[%clk 0:02:59.9]} 10... Bb6 {[%clk 0:03:03.9]} 11.
h3 {[%clk 0:02:57.4]} 11... exd4 {[%clk 0:03:04.1]} 12. Nxd4 {[%clk 0:02:57]}
12... Nc5 {[%clk 0:03:05.2]} 13. f3 {[%clk 0:02:50.8]} 13... d5 {[%clk
0:03:01.4]} 14. cxd5 {[%clk 0:02:45.8]} 14... cxd5 {[%clk 0:03:02.4]} 15. Ndb5
{[%clk 0:02:29.3]} 15... dxe4 {[%clk 0:02:49.5]} 16. b4 {[%clk 0:02:29]} 16...
exf3 {[%clk 0:02:40]} 17. Rxf3 {[%clk 0:02:29.6]} 17... Nce4 {[%clk 0:02:19.2]}
18. Bxb6 {[%clk 0:02:27.9]} 18... Nxc3 {[%clk 0:02:14.4]} 19. Rxc3 {[%clk
0:02:19.5]} 19... axb6 {[%clk 0:02:04.3]} 20. Nc7 {[%clk 0:02:20.1]} 20... Qa4
{[%clk 0:01:49.8]} 21. Nxa8 {[%clk 0:02:20.4]} 21... Qxa8 {[%clk 0:01:50.8]} 22.
Bf3 {[%clk 0:02:18.5]} 22... Be6 {[%clk 0:01:50.6]} 23. a3 {[%clk 0:02:14.5]}
23... b5 {[%clk 0:01:48.9]} 24. Rd6 {[%clk 0:02:11.8]} 24... Qa7+ {[%clk
0:01:48.4]} 25. Kh1 {[%clk 0:02:11.6]} 25... h6 {[%clk 0:01:48]} 26. Qd3 {[%clk
0:02:08.7]} 26... Qb8 {[%clk 0:01:42]} 27. Rb6 {[%clk 0:01:52.8]} 27... Bc4
{[%clk 0:01:42.4]} 28. Qf5 {[%clk 0:01:32.7]} 28... Re8 {[%clk 0:01:40.8]} 29.
Rc1 {[%clk 0:01:25.7]} 29... Qa7 {[%clk 0:01:31.4]} 30. Rxb7 {[%clk 0:01:23.6]}
30... Qxa3 {[%clk 0:01:32.3]} 31. Rd1 {[%clk 0:01:20.5]} 31... Qxb4 {[%clk
0:01:31.8]} 32. Rc7 {[%clk 0:01:15]} 32... Qc3 {[%clk 0:01:01.3]} 33. Rc8 {[%clk
0:01:01.2]} 33... Qe3 {[%clk 0:00:56.4]} 34. Rxe8+ {[%clk 0:01:00.5]} 34... Qxe8
{[%clk 0:00:58.3]} 35. Qc5 {[%clk 0:00:53.2]} 35... g6 {[%clk 0:00:56.3]} 36.
Bc6 {[%clk 0:00:47.5]} 36... Qe2 {[%clk 0:00:54]} 37. Bf3 {[%clk 0:00:48.4]}
37... Qe6 {[%clk 0:00:51]} 38. Rd8+ {[%clk 0:00:42.1]} 38... Kh7 {[%clk
0:00:52.5]} 39. Qf8 {[%clk 0:00:22]} 39... Qe1+ {[%clk 0:00:52.7]} 40. Kh2
{[%clk 0:00:23.2]} 40... Qe5+ {[%clk 0:00:53.8]} 41. g3 {[%clk 0:00:24.7]} 41...
g5 {[%clk 0:00:48.6]} 42. Qh8+ {[%clk 0:00:21.6]} 42... Kg6 {[%clk 0:00:49.7]}
43. Rg8+ {[%clk 0:00:20.9]} 43... Kf5 {[%clk 0:00:50.5]} 44. Rd8 {[%clk
0:00:11.7]} 44... b4 {[%clk 0:00:51]} 45. Qxh6 {[%clk 0:00:11.5]} 45... b3
{[%clk 0:00:39.2]} 46. Bg4+ {[%clk 0:00:11.8]} 46... Ke4 {[%clk 0:00:37.3]} 47.
Qf8 {[%clk 0:00:08]} 47... Qb2+ {[%clk 0:00:25.3]} 48. Kg1 {[%clk 0:00:08.7]}
48... Qc1+ {[%clk 0:00:26]} 49. Rd1 {[%clk 0:00:08.3]} 49... Qe3+ {[%clk
0:00:25.9]} 50. Kh2 {[%clk 0:00:08.9]} 50... Qf2+ {[%clk 0:00:26.2]} 51. Kh1
{[%clk 0:00:09.6]} 51... Bd5 {[%clk 0:00:26.3]} 52. Qe7+ {[%clk 0:00:09.4]}
52... Be6 {[%clk 0:00:25.8]} 53. Bxe6 {[%clk 0:00:10.6]} 53... Qf3+ {[%clk
0:00:25.8]} 54. Kh2 {[%clk 0:00:11.5]} 54... Qe2+ {[%clk 0:00:25.7]} 55. Kh1
{[%clk 0:00:11.8]} 55... Qxd1+ {[%clk 0:00:26.8]} 56. Kh2 {[%clk 0:00:13.2]}
56... Qe2+ {[%clk 0:00:27.8]} 57. Kh1 {[%clk 0:00:14.4]} 57... Qf1+ {[%clk
0:00:28.7]} 58. Kh2 {[%clk 0:00:15.6]} 58... Qf2+ {[%clk 0:00:27.6]} 59. Kh1
{[%clk 0:00:16.8]} 59... Qf3+ {[%clk 0:00:27.7]} 60. Kh2 {[%clk 0:00:17.8]}
60... fxe6 {[%clk 0:00:29]} 61. Qxe6+ {[%clk 0:00:18.3]} 61... Kd4 {[%clk
0:00:30.6]} 62. Qd6+ {[%clk 0:00:19.1]} 62... Kc3 {[%clk 0:00:31.5]} 63. Qe5+
{[%clk 0:00:18.5]} 63... Kc2 {[%clk 0:00:31]} 64. Qc5+ {[%clk 0:00:17.2]} 64...
Qc3 {[%clk 0:00:31.4]} 65. Qxg5 {[%clk 0:00:18.1]} 65... Qd2+ {[%clk 0:00:31.2]}
0-1

[Event "*** Titled Tuesday Blitz"]
[Site "Chess.com"]
[Date "2018.12.04"]
[Round "4"]
[White "grzechu96"]
[Black "Marcus_Harvey"]
[Result "1/2-1/2"]
[WhiteElo "2529"]
[BlackElo "2674"]
[TimeControl "180+2"]
[EndTime "13:52:00 PST"]
[Termination "Game drawn - insufficient material"]

1. e4 {[%clk 0:03:01.9]} 1... e6 {[%clk 0:03:01.9]} 2. d4 {[%clk 0:03:01.3]}
2... d5 {[%clk 0:03:03.4]} 3. Bd3 {[%clk 0:03:01.2]} 3... dxe4 {[%clk
0:03:03.7]} 4. Bxe4 {[%clk 0:03:03.1]} 4... Nf6 {[%clk 0:03:05.2]} 5. Bf3 {[%clk
0:03:04.6]} 5... c5 {[%clk 0:03:06.9]} 6. Ne2 {[%clk 0:03:05.6]} 6... Nc6 {[%clk
0:03:08.2]} 7. Be3 {[%clk 0:03:06.1]} 7... cxd4 {[%clk 0:03:08.8]} 8. Nxd4
{[%clk 0:03:08]} 8... Nxd4 {[%clk 0:03:10.2]} 9. Qxd4 {[%clk 0:03:08.7]} 9...
Qxd4 {[%clk 0:03:11]} 10. Bxd4 {[%clk 0:03:10.6]} 10... Be7 {[%clk 0:03:10.9]}
11. Nc3 {[%clk 0:03:11.2]} 11... a6 {[%clk 0:03:05.4]} 12. O-O-O {[%clk
0:03:06.6]} 12... O-O {[%clk 0:02:59.8]} 13. Na4 {[%clk 0:03:07.7]} 13... Nd7
{[%clk 0:02:58.1]} 14. Nb6 {[%clk 0:03:02.7]} 14... Nxb6 {[%clk 0:02:57.9]} 15.
Bxb6 {[%clk 0:03:04.6]} 15... e5 {[%clk 0:02:59.7]} 16. a4 {[%clk 0:03:01.7]}
16... a5 {[%clk 0:02:35.6]} 17. Rd5 {[%clk 0:02:39]} 17... Ra6 {[%clk
0:02:36.1]} 18. Bc7 {[%clk 0:02:35.5]} 18... f6 {[%clk 0:01:01.4]} 19. Rxa5
{[%clk 0:02:30]} 19... Rxa5 {[%clk 0:01:02.7]} 20. Bxa5 {[%clk 0:02:31.9]} 20...
Bc5 {[%clk 0:01:03.8]} 21. Bd5+ {[%clk 0:02:30]} 21... Kh8 {[%clk 0:01:05]} 22.
f3 {[%clk 0:02:31.3]} 22... g5 {[%clk 0:01:03.1]} 23. Rd1 {[%clk 0:02:19.4]}
23... g4 {[%clk 0:01:01.7]} 24. Bc7 {[%clk 0:01:41.6]} 24... Kg7 {[%clk
0:00:55.5]} 25. fxg4 {[%clk 0:01:16.9]} 25... Bxg4 {[%clk 0:00:55.1]} 26. Bf3
{[%clk 0:01:18.4]} 26... Bxf3 {[%clk 0:00:51.1]} 27. gxf3 {[%clk 0:01:20.3]}
27... Kg6 {[%clk 0:00:49.7]} 28. c3 {[%clk 0:00:51.6]} 28... Kf5 {[%clk
0:00:49]} 29. b4 {[%clk 0:00:52.5]} 29... Be3+ {[%clk 0:00:48.6]} 30. Kc2 {[%clk
0:00:53.9]} 30... Kf4 {[%clk 0:00:50.1]} 31. Rd3 {[%clk 0:00:54.5]} 31... Rg8
{[%clk 0:00:39]} 32. a5 {[%clk 0:00:51]} 32... Rg2+ {[%clk 0:00:38.9]} 33. Kb3
{[%clk 0:00:52.4]} 33... Rxh2 {[%clk 0:00:39.9]} 34. b5 {[%clk 0:00:41.5]} 34...
Rh1 {[%clk 0:00:41]} 35. Kc4 {[%clk 0:00:38.4]} 35... h5 {[%clk 0:00:36]} 36.
Rd6 {[%clk 0:00:39]} 36... Kf5 {[%clk 0:00:26]} 37. Bd8 {[%clk 0:00:39.9]} 37...
Bg5 {[%clk 0:00:22.8]} 38. a6 {[%clk 0:00:10.1]} 38... bxa6 {[%clk 0:00:23.1]}
39. Rxa6 {[%clk 0:00:11.8]} 39... h4 {[%clk 0:00:23.3]} 40. b6 {[%clk
0:00:13.1]} 40... h3 {[%clk 0:00:21.1]} 41. b7 {[%clk 0:00:13.6]} 41... Rb1
{[%clk 0:00:21.7]} 42. Rb6 {[%clk 0:00:15.2]} 42... Rxb6 {[%clk 0:00:22.6]} 43.
Bxb6 {[%clk 0:00:17.1]} 43... h2 {[%clk 0:00:24.2]} 44. b8=Q {[%clk 0:00:17.7]}
44... h1=Q {[%clk 0:00:25.5]} 45. Qc8+ {[%clk 0:00:19.1]} 45... Kg6 {[%clk
0:00:21]} 46. Qc6 {[%clk 0:00:19.7]} 46... Qf1+ {[%clk 0:00:20.9]} 47. Kb3
{[%clk 0:00:20.5]} 47... Qb1+ {[%clk 0:00:19.1]} 48. Kc4 {[%clk 0:00:21.2]}
48... Qa2+ {[%clk 0:00:19.4]} 49. Kd3 {[%clk 0:00:21]} 49... Qb1+ {[%clk
0:00:20.3]} 50. Kc4 {[%clk 0:00:21.5]} 50... Kh5 {[%clk 0:00:19.9]} 51. Qe4
{[%clk 0:00:21.5]} 51... Qa2+ {[%clk 0:00:18.9]} 52. Kc5 {[%clk 0:00:12.6]}
52... Qe6 {[%clk 0:00:19.6]} 53. Kb5 {[%clk 0:00:12.3]} 53... f5 {[%clk
0:00:20.4]} 54. Qe2 {[%clk 0:00:12.5]} 54... Bf4 {[%clk 0:00:20]} 55. c4 {[%clk
0:00:13.6]} 55... Qd7+ {[%clk 0:00:20.8]} 56. Kb4 {[%clk 0:00:14.5]} 56... Qd2+
{[%clk 0:00:18.4]} 57. Qxd2 {[%clk 0:00:15.1]} 57... Bxd2+ {[%clk 0:00:20.3]}
58. Kb3 {[%clk 0:00:16.2]} 58... Kg5 {[%clk 0:00:20.8]} 59. Kc2 {[%clk
0:00:17.2]} 59... Bb4 {[%clk 0:00:21.4]} 60. c5 {[%clk 0:00:18.3]} 60... Kf4
{[%clk 0:00:20.7]} 61. c6 {[%clk 0:00:19]} 61... Bd6 {[%clk 0:00:21.9]} 62. c7
{[%clk 0:00:19.2]} 62... Bxc7 {[%clk 0:00:23.2]} 63. Bxc7 {[%clk 0:00:21.1]}
63... Kxf3 {[%clk 0:00:23.3]} 64. Bxe5 {[%clk 0:00:22.6]} 64... Ke3 {[%clk
0:00:23.7]} 65. Kd1 {[%clk 0:00:22.9]} 65... f4 {[%clk 0:00:25.6]} 66. Bxf4+
{[%clk 0:00:23.7]} 1/2-1/2

[Event "*** Titled Tuesday Blitz"]
[Site "Chess.com"]
[Date "2018.12.04"]
[Round "4"]
[White "BasilSmash"]
[Black "ChainsOfFantasia"]
[Result "0-1"]
[WhiteElo "2380"]
[BlackElo "2373"]
[TimeControl "180+2"]
[EndTime "13:52:05 PST"]
[Termination "ChainsOfFantasia won by resignation"]

1. e4 {[%clk 0:03:01.2]} 1... e6 {[%clk 0:02:59.7]} 2. d4 {[%clk 0:03:01.7]}
2... d5 {[%clk 0:03:01.6]} 3. Nc3 {[%clk 0:02:59.5]} 3... Nf6 {[%clk 0:02:54.1]}
4. e5 {[%clk 0:02:57]} 4... Nfd7 {[%clk 0:02:55.3]} 5. f4 {[%clk 0:02:58.2]}
5... c5 {[%clk 0:02:56.5]} 6. Nf3 {[%clk 0:02:56.4]} 6... Nc6 {[%clk 0:02:57.9]}
7. Be3 {[%clk 0:02:55.9]} 7... Be7 {[%clk 0:02:59]} 8. Qd2 {[%clk 0:02:56.8]}
8... a6 {[%clk 0:02:59.6]} 9. dxc5 {[%clk 0:02:52.5]} 9... Bxc5 {[%clk
0:02:59.9]} 10. O-O-O {[%clk 0:02:49.5]} 10... b5 {[%clk 0:02:56.3]} 11. Nd4
{[%clk 0:02:44.6]} 11... Qb6 {[%clk 0:02:54.4]} 12. Qf2 {[%clk 0:02:44.8]} 12...
Nxd4 {[%clk 0:02:50.9]} 13. Bxd4 {[%clk 0:02:46.7]} 13... Bxd4 {[%clk
0:02:48.6]} 14. Qxd4 {[%clk 0:02:48.2]} 14... Qxd4 {[%clk 0:02:42.7]} 15. Rxd4
{[%clk 0:02:50.1]} 15... f6 {[%clk 0:02:41.9]} 16. exf6 {[%clk 0:02:49.8]} 16...
gxf6 {[%clk 0:02:43.6]} 17. f5 {[%clk 0:02:47.3]} 17... Nb6 {[%clk 0:02:31.9]}
18. fxe6 {[%clk 0:02:44.4]} 18... Bxe6 {[%clk 0:02:33.8]} 19. Bd3 {[%clk
0:02:44.6]} 19... O-O {[%clk 0:02:11]} 20. Re1 {[%clk 0:02:44]} 20... Rae8
{[%clk 0:02:03]} 21. b3 {[%clk 0:02:42.3]} 21... Bf7 {[%clk 0:02:02.5]} 22. Kd2
{[%clk 0:02:35.5]} 22... Rxe1 {[%clk 0:02:02]} 23. Kxe1 {[%clk 0:02:37.4]} 23...
Re8+ {[%clk 0:02:03.2]} 24. Kf2 {[%clk 0:02:37.6]} 24... Re5 {[%clk 0:02:03.7]}
25. Ne2 {[%clk 0:02:37.5]} 25... h6 {[%clk 0:01:59.5]} 26. Nf4 {[%clk
0:02:37.8]} 26... Kf8 {[%clk 0:01:58.1]} 27. g3 {[%clk 0:02:38.6]} 27... Ke7
{[%clk 0:01:58.5]} 28. Rb4 {[%clk 0:02:39.1]} 28... Kd6 {[%clk 0:01:55.9]} 29.
c3 {[%clk 0:02:34.2]} 29... Be8 {[%clk 0:01:54.6]} 30. Ne2 {[%clk 0:02:30.2]}
30... Nd7 {[%clk 0:01:48.1]} 31. Rh4 {[%clk 0:02:29.8]} 31... Nc5 {[%clk
0:01:49]} 32. Bc2 {[%clk 0:02:28]} 32... h5 {[%clk 0:01:49.5]} 33. Nf4 {[%clk
0:02:20.3]} 33... Ne4+ {[%clk 0:01:45.6]} 34. Bxe4 {[%clk 0:02:20.8]} 34... dxe4
{[%clk 0:01:47.5]} 35. Ke3 {[%clk 0:02:21.3]} 35... a5 {[%clk 0:01:40.6]} 36.
Ne2 {[%clk 0:02:09.9]} 36... Bg6 {[%clk 0:01:41.3]} 37. Rf4 {[%clk 0:02:09.9]}
37... f5 {[%clk 0:01:36.7]} 38. Rf2 {[%clk 0:02:10.3]} 38... b4 {[%clk
0:01:33.4]} 39. Nf4 {[%clk 0:02:09.1]} 39... Bf7 {[%clk 0:01:33]} 40. Rd2+
{[%clk 0:02:08.6]} 40... Kc6 {[%clk 0:01:34.2]} 41. c4 {[%clk 0:02:03.5]} 41...
a4 {[%clk 0:01:32.2]} 42. Rd8 {[%clk 0:01:59.8]} 42... axb3 {[%clk 0:01:32.6]}
43. axb3 {[%clk 0:02:01.7]} 43... Ra5 {[%clk 0:01:33.7]} 44. Rb8 {[%clk
0:02:00.8]} 44... Ra2 {[%clk 0:01:29.7]} 45. Rxb4 {[%clk 0:01:59.9]} 45... Rxh2
{[%clk 0:01:30.1]} 46. Rb5 {[%clk 0:02:00.7]} 46... Rb2 {[%clk 0:01:22.8]} 47.
Ne2 {[%clk 0:01:59.4]} 47... Kd6 {[%clk 0:01:17.5]} 48. Nd4 {[%clk 0:01:54.5]}
48... Be8 {[%clk 0:01:03]} 49. Nxf5+ {[%clk 0:01:53.9]} 49... Kc7 {[%clk
0:01:00.2]} 50. Rb4 {[%clk 0:01:40.3]} 50... Bc6 {[%clk 0:01:00.7]} 51. Nd4
{[%clk 0:01:37.5]} 51... Ba8 {[%clk 0:01:01.6]} 52. Rb5 {[%clk 0:01:30.3]} 52...
Rg2 {[%clk 0:01:01.8]} 53. Rg5 {[%clk 0:01:29.4]} 53... Rh2 {[%clk 0:01:01.6]}
54. c5 {[%clk 0:01:28.6]} 54... h4 {[%clk 0:01:02.2]} 55. Rg7+ {[%clk
0:01:28.2]} 55... Kb8 {[%clk 0:01:01.5]} 56. gxh4 {[%clk 0:01:28.7]} 56... Rh3+
{[%clk 0:01:00.7]} 57. Ke2 {[%clk 0:01:20.9]} 57... Bd5 {[%clk 0:01:01.7]} 58.
b4 {[%clk 0:01:17.8]} 58... Bc4+ {[%clk 0:01:01.1]} 59. Ke1 {[%clk 0:01:16.8]}
59... e3 {[%clk 0:01:01]} 60. Ne2 {[%clk 0:01:02.7]} 60... Rh2 {[%clk
0:00:54.4]} 61. Ng1 {[%clk 0:00:52.3]} 61... Rb2 {[%clk 0:00:51.6]} 62. Kd1
{[%clk 0:00:52.4]} 62... Bd3 {[%clk 0:00:51.8]} 63. Ne2 {[%clk 0:00:45]} 63...
Rd2+ {[%clk 0:00:48.4]} 64. Kc1 {[%clk 0:00:43.6]} 64... Rxe2 {[%clk 0:00:47.1]}
65. Re7 {[%clk 0:00:39.6]} 65... Re1+ {[%clk 0:00:48.1]} 66. Kb2 {[%clk
0:00:40.2]} 66... e2 {[%clk 0:00:49]} 67. Kc3 {[%clk 0:00:41.4]} 67... Bb5
{[%clk 0:00:46.2]} 68. c6 {[%clk 0:00:32.9]} 68... Rd1 {[%clk 0:00:47.3]} 0-1

[Event "*** Titled Tuesday Blitz"]
[Site "Chess.com"]
[Date "2018.12.04"]
[Round "4"]
[White "Manukyan_Artak"]
[Black "Wolverine_master"]
[Result "1-0"]
[WhiteElo "2391"]
[BlackElo "2122"]
[TimeControl "180+2"]
[EndTime "13:52:23 PST"]
[Termination "Manukyan_Artak won by resignation"]

1. e4 {[%clk 0:03:01.9]} 1... c5 {[%clk 0:02:54.6]} 2. Nf3 {[%clk 0:03:02.7]}
2... d6 {[%clk 0:02:56.1]} 3. Bb5+ {[%clk 0:03:02.9]} 3... Bd7 {[%clk
0:02:56.8]} 4. Bxd7+ {[%clk 0:03:03.9]} 4... Qxd7 {[%clk 0:02:58.7]} 5. c4
{[%clk 0:03:05.5]} 5... Nc6 {[%clk 0:02:59.6]} 6. Nc3 {[%clk 0:03:06.4]} 6... g6
{[%clk 0:03:01.2]} 7. d4 {[%clk 0:03:07.4]} 7... Bg7 {[%clk 0:03:02.8]} 8. d5
{[%clk 0:03:08.5]} 8... Nd4 {[%clk 0:03:02.5]} 9. O-O {[%clk 0:03:03.9]} 9...
Nxf3+ {[%clk 0:02:56.9]} 10. Qxf3 {[%clk 0:03:04.6]} 10... Nf6 {[%clk
0:02:58.4]} 11. h3 {[%clk 0:03:00.1]} 11... O-O {[%clk 0:02:59.2]} 12. Bg5
{[%clk 0:03:00.3]} 12... a6 {[%clk 0:02:57.2]} 13. a4 {[%clk 0:03:00.9]} 13...
Ne8 {[%clk 0:02:47.3]} 14. Qe3 {[%clk 0:02:50.2]} 14... Nc7 {[%clk 0:02:47.6]}
15. Bh6 {[%clk 0:02:49.2]} 15... b5 {[%clk 0:02:46.4]} 16. Bxg7 {[%clk
0:02:49.4]} 16... Kxg7 {[%clk 0:02:46.6]} 17. e5 {[%clk 0:02:27.6]} 17... bxc4
{[%clk 0:02:36.1]} 18. Qe4 {[%clk 0:02:16]} 18... dxe5 {[%clk 0:02:31.7]} 19.
Qxe5+ {[%clk 0:02:15]} 19... f6 {[%clk 0:02:33]} 20. Qe4 {[%clk 0:02:12]} 20...
Rab8 {[%clk 0:01:27.5]} 21. Rfe1 {[%clk 0:02:08.5]} 21... Rxb2 {[%clk
0:01:19.7]} 22. Qxc4 {[%clk 0:01:57.2]} 22... Qd6 {[%clk 0:01:09.7]} 23. Rad1
{[%clk 0:01:38.3]} 23... Rb4 {[%clk 0:01:05.9]} 24. Qe2 {[%clk 0:01:38.9]} 24...
Rf7 {[%clk 0:00:59.3]} 25. Ne4 {[%clk 0:01:37.8]} 25... Qe5 {[%clk 0:00:32.1]}
26. Nxc5 {[%clk 0:01:34.9]} 26... Qxe2 {[%clk 0:00:24.3]} 27. Rxe2 {[%clk
0:01:36.8]} 27... Rc4 {[%clk 0:00:23.8]} 28. Ne6+ {[%clk 0:01:30.8]} 28... Nxe6
{[%clk 0:00:16.6]} 29. dxe6 {[%clk 0:01:32.7]} 29... Rf8 {[%clk 0:00:17.7]} 30.
Rd7 {[%clk 0:01:33.7]} 30... Re8 {[%clk 0:00:18.4]} 31. Rb2 {[%clk 0:01:31.8]}
31... Rc6 {[%clk 0:00:18.6]} 32. Re2 {[%clk 0:01:32.7]} 32... f5 {[%clk
0:00:19.3]} 33. g4 {[%clk 0:01:28.9]} 33... Kf6 {[%clk 0:00:20.4]} 34. Ra7
{[%clk 0:01:26.1]} 34... fxg4 {[%clk 0:00:19.3]} 35. hxg4 {[%clk 0:01:27.2]}
35... Rxe6 {[%clk 0:00:20.4]} 36. Rxe6+ {[%clk 0:01:27.2]} 36... Kxe6 {[%clk
0:00:22.3]} 37. Rxa6+ {[%clk 0:01:28.9]} 37... Ke5 {[%clk 0:00:23.4]} 38. Rb6
{[%clk 0:01:20.4]} 38... Kf4 {[%clk 0:00:24.4]} 39. Rb4+ {[%clk 0:01:18.2]}
39... Kf3 {[%clk 0:00:25.8]} 40. g5 {[%clk 0:01:18.5]} 40... Ra8 {[%clk
0:00:25.7]} 41. Rh4 {[%clk 0:01:13.5]} 41... Ra5 {[%clk 0:00:24.7]} 42. Rxh7
{[%clk 0:01:13]} 42... Rxg5+ {[%clk 0:00:25.4]} 43. Kf1 {[%clk 0:01:12]} 43...
Rc5 {[%clk 0:00:21.2]} 44. Rf7+ {[%clk 0:01:10.5]} 44... Kg4 {[%clk 0:00:20.8]}
45. Rxe7 {[%clk 0:01:10.6]} 45... Ra5 {[%clk 0:00:20.8]} 46. Re4+ {[%clk
0:01:10.4]} 46... Kf5 {[%clk 0:00:21.9]} 47. Rb4 {[%clk 0:01:11.3]} 47... Ke5
{[%clk 0:00:21.6]} 48. Kg2 {[%clk 0:01:09.8]} 48... Ra6 {[%clk 0:00:19.2]} 49.
Rb5+ {[%clk 0:01:09.2]} 49... Kf6 {[%clk 0:00:20.2]} 50. a5 {[%clk 0:01:10.3]}
50... Kg7 {[%clk 0:00:21.2]} 51. Kf3 {[%clk 0:01:11.4]} 51... Rf6+ {[%clk
0:00:19.4]} 52. Ke3 {[%clk 0:01:12.6]} 52... Re6+ {[%clk 0:00:20.8]} 53. Kd4
{[%clk 0:01:13.6]} 53... Rf6 {[%clk 0:00:22.2]} 54. Ke3 {[%clk 0:01:11.2]} 54...
Re6+ {[%clk 0:00:23.2]} 55. Kf3 {[%clk 0:01:12.5]} 55... Rf6+ {[%clk 0:00:24.7]}
56. Kg3 {[%clk 0:01:13.8]} 56... Ra6 {[%clk 0:00:24.9]} 57. Kg4 {[%clk
0:01:07.8]} 57... Kh6 {[%clk 0:00:24.1]} 58. f4 {[%clk 0:01:08.6]} 58... Kg7
{[%clk 0:00:21.3]} 59. Kg5 {[%clk 0:01:02.6]} 59... Ra7 {[%clk 0:00:20]} 60. Kg4
{[%clk 0:00:57.4]} 60... Kh7 {[%clk 0:00:20.4]} 61. Kf3 {[%clk 0:00:58.1]} 61...
Kg7 {[%clk 0:00:21.7]} 62. Ke4 {[%clk 0:00:59.4]} 62... Kh6 {[%clk 0:00:23.1]}
63. Kd4 {[%clk 0:00:59.9]} 63... Rf7 {[%clk 0:00:23.7]} 64. Ke3 {[%clk
0:00:58.7]} 64... Re7+ {[%clk 0:00:24.9]} 65. Re5 {[%clk 0:00:59.9]} 65... Ra7
{[%clk 0:00:19]} 66. Kd4 {[%clk 0:01:00.3]} 66... Rf7 {[%clk 0:00:19.9]} 67. Ke4
{[%clk 0:00:57.3]} 67... Ra7 {[%clk 0:00:20.5]} 68. Rb5 {[%clk 0:00:54.3]} 68...
Re7+ {[%clk 0:00:20.8]} 69. Kd5 {[%clk 0:00:55]} 69... Rf7 {[%clk 0:00:21.5]}
70. a6 {[%clk 0:00:55.7]} 70... Rf5+ {[%clk 0:00:21.2]} 71. Kc6 {[%clk
0:00:56.1]} 71... Rxf4 {[%clk 0:00:21.9]} 72. a7 {[%clk 0:00:50]} 72... Ra4
{[%clk 0:00:18.1]} 73. Kb7 {[%clk 0:00:50.8]} 73... g5 {[%clk 0:00:16.4]} 74.
Rb6+ {[%clk 0:00:48.9]} 74... Kh5 {[%clk 0:00:17.4]} 75. Ra6 {[%clk 0:00:50]}
75... Rc4 {[%clk 0:00:18.7]} 76. a8=Q {[%clk 0:00:50.4]} 76... g4 {[%clk
0:00:20.2]} 77. Qh8+ {[%clk 0:00:50.5]} 77... Kg5 {[%clk 0:00:21.1]} 78. Qg8+
{[%clk 0:00:51.6]} 78... Kf4 {[%clk 0:00:23]} 79. Qxc4+ {[%clk 0:00:53.2]} 79...
Kg3 {[%clk 0:00:24.5]} 1-0